bitfinex/quotes_BTCUSD_20240729
["timestamp","ask_amount","ask_price","bid_price","bid_amount"]
[1722238845851,0.60791026,69698.0,69697.0,0.003924]
[1722238845972,0.59891026,69698.0,69697.0,0.002924]
[1722238846174,0.82847126,69698.0,69697.0,0.002924]
[1722238846426,0.86385936,69698.0,69697.0,0.002924]
[1722238846672,1.09342036,69698.0,69697.0,0.002924]
[1722238846846,1.31116932,69698.0,69697.0,0.002924]
[1722238847051,1.16642036,69698.0,69697.0,0.002924]
[1722238847813,0.97722906,69698.0,69697.0,0.002924]
[1722238847991,1.16542148,69698.0,69697.0,0.000924]
[1722238848199,1.38268536,69698.0,69697.0,0.002924]
[1722238848612,1.33268536,69698.0,69697.0,0.002924]
[1722238848824,1.33268536,69698.0,69697.0,0.000924]
[1722238848993,1.28968536,69698.0,69697.0,0.000924]
[1722238849200,1.48908536,69698.0,69697.0,0.000924]
[1722238849415,1.43908536,69698.0,69697.0,0.000924]
[1722238849632,1.29634499,69698.0,69697.0,0.001924]
[1722238849796,1.11478399,69698.0,69697.0,0.000924]
[1722238849983,1.06478399,69698.0,69697.0,0.000924]
[1722238850181,1.12478399,69698.0,69697.0,0.001924]
[1722238850378,1.35434499,69698.0,69697.0,0.001924]
[1722238850619,1.44908536,69698.0,69697.0,0.001924]
[1722238850778,1.30434499,69698.0,69697.0,0.001924]
[1722238850978,1.49405194,69698.0,69697.0,0.001924]
[1722238851278,1.29934499,69698.0,69697.0,0.001924]
[1722238851487,1.35542528,69698.0,69697.0,0.001924]
[1722238851917,1.30542528,69698.0,69697.0,0.001924]
[1722238853364,1.28290177,69698.0,69697.0,0.001924]
[1722238853567,1.28287,69698.0,69697.0,0.001924]
[1722238854192,1.19721091,69698.0,69697.0,0.001924]
[1722238854361,1.28287011,69698.0,69697.0,0.001924]
[1722238856367,1.35539409,69698.0,69697.0,0.001924]
[1722238856788,1.33287011,69698.0,69697.0,0.001924]
[1722238858041,1.28287011,69698.0,69697.0,0.001924]
[1722238858243,1.33287011,69698.0,69697.0,0.001924]
[1722238858373,1.28287011,69698.0,69697.0,0.001924]
[1722238858577,1.33287011,69698.0,69697.0,0.001924]
[1722238859497,1.52756555,69698.0,69697.0,0.001924]
[1722238859715,1.33287011,69698.0,69697.0,0.001924]
[1722238859989,0.69934811,69698.0,69697.0,0.001924]
[1722238860181,0.49231157,69698.0,69697.0,0.001924]
[1722238860330,1.15283357,69698.0,69697.0,0.001924]
[1722238860535,1.01359252,69698.0,69697.0,0.001924]
[1722238860734,1.38234023,69698.0,69697.0,0.001924]
[1722238861361,1.40534023,69698.0,69697.0,0.001924]
[1722238862551,1.55005057,69698.0,69697.0,0.001924]
[1722238862757,1.26615352,69698.0,69697.0,0.001924]
[1722238862955,1.54943467,69698.0,69697.0,0.001924]
[1722238863451,1.40466486,69698.0,69697.0,0.001924]
[1722238864783,1.50466486,69698.0,69697.0,0.001924]
[1722238864985,1.40466486,69698.0,69697.0,0.001924]
[1722238865958,1.26615352,69698.0,69697.0,0.001924]
[1722238866158,1.40499901,69698.0,69697.0,0.001924]
[1722238866362,1.38247455,69698.0,69697.0,0.001924]
[1722238867906,1.48247455,69698.0,69697.0,0.001924]
[1722238868132,1.38247455,69698.0,69697.0,0.001924]
[1722238868303,1.48247455,69698.0,69697.0,0.001924]
[1722238868637,1.71203555,69698.0,69697.0,0.001924]
[1722238868830,1.89834555,69698.0,69697.0,0.001924]
[1722238869015,2.04144494,69698.0,69697.0,0.001924]
[1722238869226,2.041865,69698.0,69697.0,0.001924]
[1722238869788,2.06439194,69698.0,69697.0,0.001924]
[1722238871113,2.29395294,69698.0,69697.0,0.001924]
[1722238871538,2.19395294,69698.0,69697.0,0.001924]
[1722238871716,2.29395294,69698.0,69697.0,0.001924]
[1722238872131,2.18895294,69698.0,69697.0,0.001924]
[1722238872501,2.20086949,69698.0,69697.0,0.001924]
[1722238872679,2.28615431,69698.0,69697.0,0.001924]
[1722238872889,2.13968739,69698.0,69697.0,0.000924]
[1722238873118,2.04849236,69698.0,69697.0,0.000924]
[1722238873307,2.04849236,69698.0,69697.0,0.001924]
[1722238873308,2.05949236,69698.0,69697.0,0.001924]
[1722238873534,1.95949236,69698.0,69697.0,0.001924]
[1722238873867,2.05949236,69698.0,69697.0,0.001924]
[1722238874273,2.03696542,69698.0,69697.0,0.001924]
[1722238874479,1.95096542,69698.0,69697.0,0.001924]
[1722238874847,1.92596542,69698.0,69697.0,0.000924]
[1722238874996,1.93596542,69698.0,69697.0,0.000924]
[1722238875206,1.94996542,69698.0,69697.0,0.000924]
[1722238875574,1.95030418,69698.0,69697.0,0.000924]
[1722238877487,2.07283206,69698.0,69697.0,0.000924]
[1722238878301,2.05030418,69698.0,69697.0,0.000924]
[1722238878924,2.04999901,69698.0,69697.0,0.000924]
[1722238881237,2.13329901,69698.0,69697.0,0.000924]
[1722238881638,2.15582669,69698.0,69697.0,0.000924]
[1722238882142,2.01742713,69698.0,69697.0,0.000924]
[1722238882343,2.15531396,69698.0,69697.0,0.000924]
[1722238882761,2.13278628,69698.0,69697.0,0.000924]
[1722238883804,2.36234728,69698.0,69697.0,0.000924]
[1722238884673,2.22446045,69698.0,69697.0,0.000924]
[1722238884870,2.36200154,69698.0,69697.0,0.000924]
[1722238885477,2.22446045,69698.0,69697.0,0.000924]
[1722238885636,1.98932273,69698.0,69697.0,0.000924]
[1722238885853,2.01185041,69698.0,69697.0,0.000924]
[1722238886622,1.98932273,69698.0,69697.0,0.000924]
[1722238887203,1.80602273,69698.0,69697.0,0.000924]
[1722238887353,1.49226173,69698.0,69697.0,0.000924]
[1722238887555,1.57556173,69698.0,69697.0,0.000924]
[1722238887955,1.49506173,69698.0,69697.0,0.000924]
[1722238888631,1.51806173,69698.0,69697.0,0.000924]
[1722238888747,1.51845144,69698.0,69697.0,0.000924]
[1722238889882,1.54097734,69698.0,69697.0,0.000924]
[1722238890276,1.51845144,69698.0,69697.0,0.000924]
[1722238890473,1.46845144,69698.0,69697.0,0.000924]
[1722238890675,1.38214144,69698.0,69697.0,0.000924]
[1722238890877,0.81788044,69698.0,69697.0,0.000924]
[1722238891212,0.90118044,69698.0,69697.0,0.000924]
[1722238892096,0.88718044,69698.0,69697.0,0.000924]
[1722238892263,0.99818044,69698.0,69697.0,0.000924]
[1722238892470,0.98516296,69698.0,69697.0,0.000924]
[1722238892643,0.97416296,69698.0,69697.0,0.000924]
[1722238892968,0.97016296,69698.0,69697.0,0.000924]
[1722238893107,0.97616296,69698.0,69697.0,0.000924]
[1722238893310,0.97016296,69698.0,69697.0,0.000924]
[1722238893511,0.99268802,69698.0,69697.0,0.000924]
[1722238893708,0.98668802,69698.0,69697.0,0.000924]
[1722238893916,0.67307065,69698.0,69697.0,0.000924]
[1722238894136,0.39604096,69698.0,69697.0,0.130024]
[1722238894373,0.62560196,69698.0,69697.0,0.130024]
[1722238894527,0.80537982,69698.0,69697.0,0.130024]
[1722238894725,0.85137982,69698.0,69697.0,0.130024]
[1722238895421,0.85137982,69698.0,69697.0,0.000924]
[1722238895422,1.35844082,69698.0,69697.0,0.000924]
[1722238895645,1.66090021,69698.0,69697.0,0.000924]
[1722238895843,1.67090021,69698.0,69697.0,0.000924]
[1722238896332,1.66390021,69698.0,69697.0,0.000924]
[1722238896535,1.67090021,69698.0,69697.0,0.000924]
[1722238896735,1.51780082,69698.0,69697.0,0.000924]
[1722238896937,1.52080082,69698.0,69697.0,0.000924]
[1722238897176,1.55332581,69698.0,69697.0,0.000924]
[1722238897375,1.47002581,69698.0,69697.0,0.000924]
[1722238897591,1.46702581,69698.0,69697.0,0.000924]
[1722238897878,1.04716581,69698.0,69697.0,0.000924]
[1722238898086,0.93935946,69698.0,69697.0,0.067524]
[1722238898357,0.77207982,69698.0,69697.0,0.067524]
[1722238899532,0.77207982,69698.0,69697.0,0.000924]
[1722238900257,0.72207982,69698.0,69697.0,0.000924]
[1722238901066,1.30728437,69698.0,69697.0,0.000924]
[1722238901238,1.39538437,69698.0,69697.0,0.000924]
[1722238901638,1.4688525,69698.0,69697.0,0.000924]
[1722238902044,1.32027261,69698.0,69697.0,0.000924]
[1722238902246,1.44618841,69698.0,69697.0,0.000924]
[1722238902607,1.37464486,69698.0,69697.0,0.000924]
[1722238904082,1.37463939,69698.0,69697.0,0.000924]
[1722238904889,1.79056039,69698.0,69697.0,0.000924]
[1722238905277,1.81308557,69698.0,69697.0,0.000924]
[1722238905478,1.89056039,69698.0,69697.0,0.000924]
[1722238906756,1.88056039,69698.0,69697.0,0.000924]
[1722238907385,1.78056039,69698.0,69697.0,0.000924]
[1722238907589,1.88056039,69698.0,69697.0,0.000924]
[1722238907787,1.89456039,69698.0,69697.0,0.000924]
[1722238909223,1.79456039,69698.0,69697.0,0.000924]
[1722238909424,1.5875261,69698.0,69697.0,0.000924]
[1722238909635,1.6875261,69698.0,69697.0,0.000924]
[1722238910046,2.05618649,69698.0,69697.0,0.000924]
[1722238910245,2.06418649,69698.0,69697.0,0.000924]
[1722238910452,2.04165978,69698.0,69697.0,0.000924]
[1722238910649,1.84856039,69698.0,69697.0,0.000924]
[1722238910811,1.79056039,69698.0,69697.0,0.000924]
[1722238911217,1.76465006,69698.0,69697.0,0.000924]
[1722238911439,1.89068957,69698.0,69697.0,0.000924]
[1722238911638,1.84385987,69698.0,69697.0,0.000924]
[1722238911846,1.89068943,69698.0,69697.0,0.000924]
[1722238912585,1.91321584,69698.0,69697.0,0.000924]
[1722238913554,1.98634782,69698.0,69697.0,0.000924]
[1722238913755,1.98540866,69698.0,69697.0,0.000924]
[1722238914218,1.7841318,69698.0,69697.0,0.000924]
[1722238914427,1.96223093,69698.0,69697.0,0.000924]
[1722238915230,1.86223093,69698.0,69697.0,0.000924]
[1722238915445,1.96223093,69698.0,69697.0,0.000924]
[1722238915646,1.86223093,69698.0,69697.0,0.000924]
[1722238916085,1.96223093,69698.0,69697.0,0.000924]
[1722238916284,1.86223093,69698.0,69697.0,0.000924]
[1722238916892,1.87223093,69698.0,69697.0,0.000924]
[1722238917099,1.97223093,69698.0,69697.0,0.000924]
[1722238917359,1.87223093,69698.0,69697.0,0.000924]
[1722238917566,1.91632455,69698.0,69697.0,0.000924]
[1722238917751,1.82116458,69698.0,69697.0,0.000924]
[1722238918065,1.92116458,69698.0,69697.0,0.000924]
[1722238918191,1.89863822,69698.0,69697.0,0.000924]
[1722238919261,1.98193822,69698.0,69697.0,0.000924]
[1722238920606,1.85795006,69698.0,69697.0,0.000924]
[1722238920805,1.9361735,69698.0,69697.0,0.000924]
[1722238921021,1.88197314,69698.0,69697.0,0.000924]
[1722238921223,1.75795006,69698.0,69697.0,0.000924]
[1722238921422,2.00453481,69698.0,69697.0,0.000924]
[1722238921723,1.88200837,69698.0,69697.0,0.000924]
[1722238921921,1.98200837,69698.0,69697.0,0.000924]
[1722238922736,1.56914737,69698.0,69697.0,0.000924]
[1722238922937,1.50464737,69698.0,69697.0,0.000924]
[1722238923137,1.50682138,69698.0,69697.0,0.000924]
[1722238924604,1.52934722,69698.0,69697.0,0.000924]
[1722238925530,1.47934722,69698.0,69697.0,0.000924]
[1722238926115,1.13528722,69698.0,69697.0,0.066324]
[1722238926290,0.90535906,69698.0,69697.0,0.066324]
[1722238926491,0.95628929,69698.0,69697.0,0.066324]
[1722238926813,0.98865754,69698.0,69697.0,0.066324]
[1722238927910,0.98865754,69698.0,69697.0,0.000924]
[1722238928705,1.36961854,69698.0,69697.0,0.000924]
[1722238928904,1.53111854,69698.0,69697.0,0.000924]
[1722238929542,1.39544944,69698.0,69697.0,0.000924]
[1722238929691,1.51831622,69698.0,69697.0,0.000924]
[1722238930125,1.45541622,69698.0,69697.0,0.000924]
[1722238930326,1.35729038,69698.0,69697.0,0.000924]
[1722238931245,0.97632938,69698.0,69697.0,0.063624]
[1722238931646,0.54046838,69698.0,69697.0,0.063624]
[1722238932022,0.77002938,69698.0,69697.0,0.063624]
[1722238932405,0.76002938,69698.0,69697.0,0.063624]
[1722238932606,0.77002938,69698.0,69697.0,0.063624]
[1722238932810,0.65696806,69698.0,69697.0,0.063624]
[1722238933019,0.77005636,69698.0,69697.0,0.063624]
[1722238933219,0.65696806,69698.0,69697.0,0.063624]
[1722238933439,0.72971502,69698.0,69697.0,0.063624]
[1722238933805,0.76978069,69698.0,69697.0,0.063624]
[1722238934013,0.75978069,69698.0,69697.0,0.063624]
[1722238934680,0.74578069,69698.0,69697.0,0.063624]
[1722238934829,0.75278069,69698.0,69697.0,0.000924]
[1722238935038,0.70278069,69698.0,69697.0,0.000924]
[1722238935411,0.70247759,69698.0,69697.0,0.000924]
[1722238935831,0.75247759,69698.0,69697.0,0.000924]
[1722238936075,0.74547759,69698.0,69697.0,0.000924]
[1722238937383,0.74847759,69698.0,69697.0,0.000924]
[1722238937630,0.77100244,69698.0,69697.0,0.000924]
[1722238937811,0.76800244,69698.0,69697.0,0.000924]
[1722238939279,0.76840675,69698.0,69697.0,0.000924]
[1722238940233,0.77040675,69698.0,69697.0,0.000924]
[1722238940524,0.76840675,69698.0,69697.0,0.000924]
[1722238940816,0.76940675,69698.0,69697.0,0.000924]
[1722238941022,0.99896775,69698.0,69697.0,0.000924]
[1722238941165,0.76940675,69698.0,69697.0,0.000924]
[1722238941367,0.99896775,69698.0,69697.0,0.000924]
[1722238941586,1.02196775,69698.0,69697.0,0.000924]
[1722238942177,0.97196775,69698.0,69697.0,0.000924]
[1722238942385,1.06045391,69698.0,69697.0,0.000924]
[1722238942593,1.15031952,69698.0,69697.0,0.000924]
[1722238943037,1.1503126,69698.0,69697.0,0.000924]
[1722238944106,1.1003126,69698.0,69697.0,0.000924]
[1722238944932,0.98792906,69698.0,69697.0,0.000924]
[1722238945134,1.10053605,69698.0,69697.0,0.000924]
[1722238945335,1.10034368,69698.0,69697.0,0.000924]
[1722238945491,0.79190714,69698.0,69697.0,0.000924]
[1722238945697,0.67949252,69698.0,69697.0,0.000924]
[1722238945899,0.79190692,69698.0,69697.0,0.000924]
[1722238946136,0.79290692,69698.0,69697.0,0.000924]
[1722238947121,0.77038246,69698.0,69697.0,0.000924]
[1722238947523,0.76938246,69698.0,69697.0,0.000924]
[1722238947749,0.91606804,69698.0,69697.0,0.000924]
[1722238948265,0.89106804,69698.0,69697.0,0.000924]
[1722238948642,0.84106804,69698.0,69697.0,0.000924]
[1722238949047,0.69524584,69698.0,69697.0,0.000924]
[1722238949249,0.83988076,69698.0,69697.0,0.000924]
[1722238949455,0.89688076,69698.0,69697.0,0.000924]
[1722238949851,0.88988076,69698.0,69697.0,0.000924]
[1722238950188,0.84388076,69698.0,69697.0,0.000924]
[1722238950336,0.86640498,69698.0,69697.0,0.000924]
[1722238950742,0.91640498,69698.0,69697.0,0.000924]
[1722238951138,0.89388076,69698.0,69697.0,0.000924]
[1722238952482,0.89382816,69698.0,69697.0,0.000924]
[1722238952889,0.58696806,69698.0,69697.0,0.000924]
[1722238953063,0.84382815,69698.0,69697.0,0.000924]
[1722238953470,0.88982815,69698.0,69697.0,0.000924]
[1722238953878,0.89882815,69698.0,69697.0,0.000924]
[1722238954415,0.88982815,69698.0,69697.0,0.000924]
[1722238954559,0.68279133,69698.0,69697.0,0.000924]
[1722238954760,0.53811319,69698.0,69697.0,0.000924]
[1722238954951,0.76767419,69698.0,69697.0,0.000924]
[1722238956179,0.19377219,69698.0,69697.0,0.066324]
[1722238956381,0.53811319,69698.0,69697.0,0.066324]
[1722238956604,0.54311319,69698.0,69697.0,0.066324]
[1722238956963,0.53811319,69698.0,69697.0,0.066324]
[1722238957366,0.54211319,69698.0,69697.0,0.066324]
[1722238957638,0.77167419,69698.0,69697.0,0.000924]
[1722238957827,1.14505233,69698.0,69697.0,0.000924]
[1722238958032,1.09505233,69698.0,69697.0,0.000924]
[1722238958238,1.14505233,69698.0,69697.0,0.000924]
[1722238958558,0.97785001,69698.0,69697.0,0.000924]
[1722238958883,0.93746477,69698.0,69697.0,0.000924]
[1722238959240,0.97657378,69698.0,69697.0,0.000924]
[1722238960905,1.20613478,69698.0,69697.0,0.000924]
[1722238961312,1.20913478,69698.0,69697.0,0.000924]
[1722238961875,1.23165912,69698.0,69697.0,0.000924]
[1722238962068,1.4233144,69698.0,69697.0,0.000924]
[1722238962269,1.48423507,69698.0,69697.0,0.000924]
[1722238962703,1.48181643,69698.0,69697.0,0.000924]
[1722238963680,1.42781643,69698.0,69697.0,0.000924]
[1722238964079,1.43281643,69698.0,69697.0,0.000924]
[1722238964606,1.48281643,69698.0,69697.0,0.000924]
[1722238964845,1.48304596,69698.0,69697.0,0.000924]
[1722238965373,1.48304597,69698.0,69697.0,0.000924]
[1722238965599,1.39984597,69698.0,69697.0,0.000924]
[1722238965815,1.48304597,69698.0,69697.0,0.000924]
[1722238966203,1.47804597,69698.0,69697.0,0.000924]
[1722238966645,1.48904597,69698.0,69697.0,0.000924]
[1722238966962,1.24848497,69698.0,69697.0,0.000924]
[1722238967298,1.25948497,69698.0,69697.0,0.000924]
[1722238968159,1.00778497,69698.0,69697.0,0.000924]
[1722238968366,0.72822397,69698.0,69697.0,0.000924]
[1722238968574,0.76722397,69698.0,69697.0,0.000924]
[1722238968759,0.71722397,69698.0,69697.0,0.000924]
[1722238968959,0.72622397,69698.0,69697.0,0.000924]
[1722238969351,0.76722397,69698.0,69697.0,0.000924]
[1722238969547,0.71722397,69698.0,69697.0,0.000924]
[1722238969753,0.72422397,69698.0,69697.0,0.000924]
[1722238969931,0.71722397,69698.0,69697.0,0.000924]
[1722238970110,0.69469963,69698.0,69697.0,0.000924]
[1722238970313,0.74869963,69698.0,69697.0,0.000924]
[1722238970512,0.69869963,69698.0,69697.0,0.000924]
[1722238970723,0.74869963,69698.0,69697.0,0.000924]
[1722238971117,0.74469963,69698.0,69697.0,0.000924]
[1722238971798,0.74591481,69698.0,69697.0,0.000924]
[1722238971984,0.74791481,69698.0,69697.0,0.000924]
[1722238972186,0.70776922,69698.0,69697.0,0.000924]
[1722238972535,0.74591482,69698.0,69697.0,0.000924]
[1722238973510,0.76843925,69698.0,69697.0,0.000924]
[1722238973781,0.85163925,69698.0,69697.0,0.000924]
[1722238975118,0.85179369,69698.0,69697.0,0.000924]
[1722238976557,1.24845469,69698.0,69697.0,0.000924]
[1722238976930,1.29763691,69698.0,69697.0,0.000924]
[1722238977130,1.24845469,69698.0,69697.0,0.000924]
[1722238978133,1.19845469,69698.0,69697.0,0.000924]
[1722238978335,1.09100924,69698.0,69697.0,0.000924]
[1722238978550,0.84392381,69698.0,69697.0,0.000924]
[1722238979235,0.84192381,69698.0,69697.0,0.000924]
[1722238979598,0.79192381,69698.0,69697.0,0.000924]
[1722238979725,0.84192381,69698.0,69697.0,0.000924]
[1722238979928,0.79192381,69698.0,69697.0,0.000924]
[1722238980564,0.75872381,69698.0,69697.0,0.000924]
[1722238980935,0.40640706,69698.0,69697.0,0.000924]
[1722238981138,0.46796276,69698.0,69697.0,0.000924]
[1722238981377,0.51796276,69698.0,69697.0,0.000924]
[1722238982037,0.28840176,69698.0,69697.0,0.000924]
[1722238982207,0.5404869,69698.0,69697.0,0.000924]
[1722238982587,0.5374869,69698.0,69697.0,0.000924]
[1722238982983,0.51496276,69698.0,69697.0,0.000924]
[1722238983184,0.65996752,69698.0,69697.0,0.000924]
[1722238983392,0.88952852,69698.0,69697.0,0.000924]
[1722238983848,0.8781636,69698.0,69697.0,0.000924]
[1722238984331,0.8861636,69698.0,69697.0,0.000924]
[1722238984764,0.8781636,69698.0,69697.0,0.000924]
[1722238984968,0.8791636,69698.0,69697.0,0.000924]
[1722238985133,0.8791636,69698.0,69694.0,0.0619]
[1722238985134,0.40342206,69695.0,69694.0,0.0619]
[1722238985340,0.43702699,69695.0,69694.0,0.0619]
[1722238986300,0.45955047,69695.0,69694.0,0.0619]
[1722238986500,0.17385606,69692.0,69691.0,0.062324]
[1722238986717,0.20746099,69692.0,69691.0,0.062324]
[1722238986912,0.17385606,69692.0,69691.0,0.062324]
[1722238987114,0.20741237,69692.0,69691.0,0.062324]
[1722238988212,0.20841237,69692.0,69691.0,0.062324]
[1722238988641,0.20941237,69692.0,69691.0,0.062324]
[1722238990196,0.20933678,69692.0,69691.0,0.062324]
[1722238993048,0.43891778,69692.0,69691.0,0.062324]
[1722238993215,0.43891778,69692.0,69691.0,0.000924]
[1722238993578,0.43902602,69692.0,69691.0,0.000924]
[1722238993997,0.40543706,69692.0,69691.0,0.000924]
[1722238994322,0.43902602,69692.0,69691.0,0.000924]
[1722238996047,0.43894654,69692.0,69691.0,0.000924]
[1722238996450,0.66852754,69692.0,69691.0,0.000924]
[1722238996661,0.79739509,69692.0,69691.0,0.000924]
[1722238996862,0.79732222,69692.0,69691.0,0.000924]
[1722238997083,0.79732195,69692.0,69691.0,0.000924]
[1722238997369,0.56774095,69692.0,69691.0,0.000924]
[1722238998132,0.590265,69692.0,69691.0,0.000924]
[1722239000031,0.42796111,69692.0,69691.0,0.000924]
[1722239000194,0.54023043,69692.0,69691.0,0.000924]
[1722239000953,0.53923043,69692.0,69691.0,0.000924]
[1722239001465,0.54023043,69692.0,69691.0,0.000924]
[1722239001780,0.76981143,69692.0,69691.0,0.000924]
[1722239001946,0.76881143,69692.0,69691.0,0.000924]
[1722239003176,0.60654211,69692.0,69691.0,0.000924]
[1722239003375,0.76922347,69692.0,69691.0,0.000924]
[1722239003802,0.76922486,69692.0,69691.0,0.000924]
[1722239004013,0.81922486,69692.0,69691.0,0.000924]
[1722239005132,0.76922486,69692.0,69691.0,0.000924]
[1722239005397,0.81922831,69692.0,69691.0,0.000924]
[1722239005730,0.64034637,69692.0,69691.0,0.000924]
[1722239006331,0.61782232,69692.0,69691.0,0.000924]
[1722239006534,0.66782109,69692.0,69691.0,0.000924]
[1722239006741,0.61782109,69692.0,69691.0,0.000924]
[1722239006942,0.66782109,69692.0,69691.0,0.000924]
[1722239007153,0.73466616,69692.0,69691.0,0.000924]
[1722239007578,0.73366616,69692.0,69691.0,0.000924]
[1722239007802,0.73466616,69692.0,69691.0,0.000924]
[1722239008024,0.68466616,69692.0,69691.0,0.000924]
[1722239008516,0.82316616,69692.0,69691.0,0.000924]
[1722239008743,0.87316616,69692.0,69691.0,0.000924]
[1722239008864,1.05274716,69692.0,69691.0,0.000924]
[1722239009492,1.24773583,69692.0,69691.0,0.000924]
[1722239009736,1.270261,69692.0,69691.0,0.000924]
[1722239009887,1.2711894,69692.0,69691.0,0.000924]
[1722239010079,1.2211894,69692.0,69691.0,0.000924]
[1722239010506,1.2711894,69692.0,69691.0,0.000924]
[1722239010913,1.24866423,69692.0,69691.0,0.000924]
[1722239011131,1.10365016,69692.0,69691.0,0.000924]
[1722239011485,1.10265016,69692.0,69691.0,0.000924]
[1722239012772,1.05265016,69692.0,69691.0,0.000924]
[1722239012999,0.95109906,69692.0,69691.0,0.000924]
[1722239013210,1.0523559,69692.0,69691.0,0.000924]
[1722239013559,1.05236451,69692.0,69691.0,0.000924]
[1722239013968,1.10236451,69692.0,69691.0,0.000924]
[1722239015641,1.05236451,69692.0,69691.0,0.000924]
[1722239015978,1.10236451,69692.0,69691.0,0.000924]
[1722239016345,1.05248458,69692.0,69691.0,0.000924]
[1722239017856,1.13001052,69692.0,69691.0,0.000924]
[1722239018040,1.07501052,69692.0,69691.0,0.000924]
[1722239018495,1.07801052,69692.0,69691.0,0.000924]
[1722239019696,1.01069269,69692.0,69691.0,0.000924]
[1722239019935,1.07780026,69692.0,69691.0,0.000924]
[1722239021622,1.12780026,69692.0,69691.0,0.000924]
[1722239022371,1.35738126,69692.0,69691.0,0.000924]
[1722239022781,1.256206,69692.0,69691.0,0.000924]
[1722239022998,1.30734044,69692.0,69691.0,0.000924]
[1722239023172,1.2848145,69692.0,69691.0,0.000924]
[1722239023354,1.28435364,69692.0,69691.0,0.000924]
[1722239023537,1.33435364,69692.0,69691.0,0.000924]
[1722239024054,1.36035364,69692.0,69691.0,0.000924]
[1722239024789,1.35735364,69692.0,69691.0,0.000924]
[1722239024996,1.50945303,69692.0,69691.0,0.000924]
[1722239025197,1.36635364,69692.0,69691.0,0.000924]
[1722239025406,1.41635364,69692.0,69691.0,0.000924]
[1722239025564,1.36635364,69692.0,69691.0,0.000924]
[1722239026366,1.33915865,69692.0,69691.0,0.000924]
[1722239026552,1.78822225,69692.0,69691.0,0.000924]
[1722239026701,1.75439177,69692.0,69691.0,0.000924]
[1722239026903,1.85439177,69692.0,69691.0,0.000924]
[1722239027169,2.08397277,69692.0,69691.0,0.000924]
[1722239027366,1.85439177,69692.0,69691.0,0.000924]
[1722239028027,2.06569094,69692.0,69691.0,0.000924]
[1722239028420,2.20879033,69692.0,69691.0,0.000924]
[1722239029252,2.20940409,69692.0,69691.0,0.000924]
[1722239029587,1.9981615,69692.0,69691.0,0.000924]
[1722239029955,1.92069,69692.0,69691.0,0.000924]
[1722239030366,1.77759061,69692.0,69691.0,0.000924]
[1722239030980,1.75506211,69692.0,69691.0,0.000924]
[1722239032007,1.85506211,69692.0,69691.0,0.000924]
[1722239032454,1.75506211,69692.0,69691.0,0.000924]
[1722239032677,1.75514616,69692.0,69691.0,0.000924]
[1722239032829,1.85514616,69692.0,69691.0,0.000924]
[1722239033399,1.75514616,69692.0,69691.0,0.000924]
[1722239034930,1.85514616,69692.0,69691.0,0.000924]
[1722239035108,1.75514616,69692.0,69691.0,0.000924]
[1722239035313,1.75582899,69692.0,69691.0,0.000924]
[1722239035746,1.78815658,69692.0,69691.0,0.000924]
[1722239035963,1.85582901,69692.0,69691.0,0.000924]
[1722239038223,1.75582901,69692.0,69691.0,0.000924]
[1722239038656,1.57695744,69692.0,69691.0,0.000924]
[1722239038865,1.28637644,69692.0,69691.0,0.000924]
[1722239039060,1.26954801,69692.0,69691.0,0.000924]
[1722239039287,1.21954801,69692.0,69691.0,0.000924]
[1722239039630,1.26954801,69692.0,69691.0,0.000924]
[1722239039743,1.21954801,69692.0,69691.0,0.000924]
[1722239040815,1.18318801,69692.0,69691.0,0.000924]
[1722239040962,1.16018801,69692.0,69691.0,0.000924]
[1722239041162,1.30608801,69692.0,69691.0,0.000924]
[1722239041360,1.20369906,69692.0,69691.0,0.000924]
[1722239041579,1.30516021,69692.0,69691.0,0.000924]
[1722239041998,1.20369906,69692.0,69691.0,0.000924]
[1722239042203,1.30491022,69692.0,69691.0,0.000924]
[1722239042487,1.32743748,69692.0,69691.0,0.000924]
[1722239042691,1.40043748,69692.0,69691.0,0.000924]
[1722239043156,1.35043748,69692.0,69691.0,0.000924]
[1722239043358,1.32791022,69692.0,69691.0,0.000924]
[1722239044657,1.26081786,69692.0,69691.0,0.000924]
[1722239044782,1.32792571,69692.0,69691.0,0.000924]
[1722239046524,1.35045355,69692.0,69691.0,0.000924]
[1722239046931,1.32792571,69692.0,69691.0,0.000924]
[1722239048117,1.32823217,69692.0,69691.0,0.000924]
[1722239050354,1.58034098,69692.0,69691.0,0.000924]
[1722239050977,1.55781317,69692.0,69691.0,0.000924]
[1722239051175,1.45628006,69692.0,69691.0,0.000924]
[1722239051388,1.55749542,69692.0,69691.0,0.000924]
[1722239052912,1.27791442,69692.0,69691.0,0.000924]
[1722239053091,1.32791442,69692.0,69691.0,0.000924]
[1722239053490,1.55749542,69692.0,69691.0,0.000924]
[1722239053969,1.5576351,69692.0,69691.0,0.000924]
[1722239054328,1.47880779,69692.0,69691.0,0.000924]
[1722239054494,1.35062579,69692.0,69691.0,0.000924]
[1722239054697,1.32809806,69692.0,69691.0,0.000924]
[1722239054899,0.86266906,69686.0,69685.0,0.124954]
[1722239055123,1.19211606,69686.0,69685.0,0.124954]
[1722239055330,0.114805,69683.0,69682.0,0.0632]
[1722239055531,0.50488106,69683.0,69682.0,0.0632]
[1722239055755,0.96410306,69683.0,69682.0,0.0632]
[1722239056217,0.91410306,69683.0,69682.0,0.0632]
[1722239056436,0.96410306,69683.0,69682.0,0.0632]
[1722239056602,0.91410306,69683.0,69682.0,0.0632]
[1722239056781,0.96410306,69683.0,69682.0,0.0632]
[1722239057214,0.22527006,69683.0,69682.0,0.0632]
[1722239057437,0.43769503,69683.0,69682.0,0.0632]
[1722239057618,0.40348206,69683.0,69682.0,0.0632]
[1722239057840,0.43764772,69683.0,69682.0,0.07246868]
[1722239057997,0.43764772,69683.0,69682.0,0.13416868]
[1722239058219,0.41117413,69683.0,69682.0,0.13416868]
[1722239058425,0.46117413,69683.0,69682.0,0.13416868]
[1722239058631,0.46017413,69683.0,69682.0,0.13416868]
[1722239058830,0.05669207,69683.0,69682.0,0.13416868]
[1722239059012,0.06675813,69683.0,69682.0,0.13416868]
[1722239059598,0.06575813,69683.0,69682.0,0.13416868]
[1722239060043,0.06675813,69683.0,69682.0,0.13416868]
[1722239060969,0.06676794,69683.0,69682.0,0.13416868]
[1722239062138,0.06576794,69683.0,69682.0,0.13416868]